[Event "Late-Titled-Tuesday-Blitz-January-23-2024"]
[Site "Chess.com"]
[Date "2024.01.23"]
[Round "5"]
[White "GothamChess"]
[Black "Road2GM3000"]
[Result "0-1"]
[WhiteElo "2773"]
[BlackElo "2487"]
[TimeControl "180+1"]
[EndTime "14:53:59 PST"]
[Termination "Road2GM3000 won by resignation"]

1. e4 {[%clk 0:03:00.9]} 1... c5 {[%clk 0:01:32.2]} 2. Nc3 {[%clk 0:02:59.6]}
2... d6 {[%clk 0:01:31.4]} 3. d4 {[%clk 0:02:59.4]} 3... cxd4 {[%clk 0:01:30.3]}
4. Qxd4 {[%clk 0:03:00.3]} 4... Nc6 {[%clk 0:01:27.3]} 5. Qd2 {[%clk 0:03:00.3]}
5... Nf6 {[%clk 0:01:28]} 6. b3 {[%clk 0:03:00.3]} 6... e6 {[%clk 0:01:28.6]} 7.
Bb2 {[%clk 0:03:00.7]} 7... a6 {[%clk 0:01:29.2]} 8. O-O-O {[%clk 0:03:00.9]}
8... Be7 {[%clk 0:01:29.9]} 9. f3 {[%clk 0:03:01.2]} 9... O-O {[%clk 0:01:28.2]}
10. g4 {[%clk 0:02:59.4]} 10... Nd7 {[%clk 0:01:20.5]} 11. h4 {[%clk 0:02:56.9]}
11... b5 {[%clk 0:01:19.1]} 12. g5 {[%clk 0:02:53.8]} 12... Nc5 {[%clk
0:00:56.5]} 13. Kb1 {[%clk 0:02:37.8]} 13... b4 {[%clk 0:00:55.4]} 14. Nce2
{[%clk 0:02:38.5]} 14... a5 {[%clk 0:00:52]} 15. Nd4 {[%clk 0:02:38.8]} 15...
Nxd4 {[%clk 0:00:50.5]} 16. Qxd4 {[%clk 0:02:28.2]} 16... e5 {[%clk 0:00:50.2]}
17. Qe3 {[%clk 0:02:25]} 17... a4 {[%clk 0:00:48.2]} 18. Bc4 {[%clk 0:02:15.7]}
18... Be6 {[%clk 0:00:38.8]} 19. Bd5 {[%clk 0:02:11.2]} 19... axb3 {[%clk
0:00:25.3]} 20. axb3 {[%clk 0:02:10.9]} 20... Bxd5 {[%clk 0:00:19.9]} 21. Rxd5
{[%clk 0:02:11.8]} 21... Qa5 {[%clk 0:00:19.7]} 22. Rxc5 {[%clk 0:01:29.2]}
22... dxc5 {[%clk 0:00:18.9]} 23. Qe2 {[%clk 0:00:58.8]} 23... c4 {[%clk
0:00:15.6]} 24. Qxc4 {[%clk 0:00:48.4]} 24... Rfc8 {[%clk 0:00:16.2]} 25. Qd3
{[%clk 0:00:48.4]} 25... Rc3 {[%clk 0:00:13.3]} 26. Qe2 {[%clk 0:00:24.8]} 26...
Qa2+ {[%clk 0:00:13.1]} 27. Kc1 {[%clk 0:00:25.5]} 27... Qxb3 {[%clk 0:00:12.4]}
28. Bxc3 {[%clk 0:00:25.9]} 28... Qxc3 {[%clk 0:00:13]} 0-1

[Event "Late-Titled-Tuesday-Blitz-January-23-2024"]
[Site "Chess.com"]
[Date "2024.01.23"]
[Round "5"]
[White "SmirnovTimofey2000"]
[Black "ItalianMachine"]
[Result "0-1"]
[WhiteElo "1967"]
[BlackElo "2365"]
[TimeControl "180+1"]
[EndTime "14:53:59 PST"]
[Termination "ItalianMachine won by checkmate"]

1. e4 {[%clk 0:03:00.9]} 1... e5 {[%clk 0:02:59.8]} 2. Nf3 {[%clk 0:03:00.6]}
2... Nc6 {[%clk 0:02:59.8]} 3. Bc4 {[%clk 0:03:00.4]} 3... Nf6 {[%clk
0:03:00.1]} 4. Ng5 {[%clk 0:03:00.1]} 4... d5 {[%clk 0:03:00.2]} 5. exd5 {[%clk
0:03:01]} 5... Na5 {[%clk 0:03:00.8]} 6. Bb5+ {[%clk 0:03:01.5]} 6... c6 {[%clk
0:03:01.3]} 7. dxc6 {[%clk 0:03:01.9]} 7... bxc6 {[%clk 0:03:02.2]} 8. Bd3
{[%clk 0:03:02.1]} 8... Nd5 {[%clk 0:03:02.8]} 9. Nf3 {[%clk 0:03:00.4]} 9...
Nf4 {[%clk 0:02:57.5]} 10. O-O {[%clk 0:02:39]} 10... Nxd3 {[%clk 0:02:42.3]}
11. cxd3 {[%clk 0:02:39.9]} 11... Bd6 {[%clk 0:02:28.2]} 12. Re1 {[%clk
0:02:16.3]} 12... f6 {[%clk 0:01:44.6]} 13. d4 {[%clk 0:01:52.8]} 13... O-O
{[%clk 0:01:43.9]} 14. dxe5 {[%clk 0:01:53]} 14... fxe5 {[%clk 0:01:44.8]} 15.
Nxe5 {[%clk 0:01:49]} 15... Qf6 {[%clk 0:01:35.6]} 16. Nf3 {[%clk 0:01:36.9]}
16... Bg4 {[%clk 0:01:35.1]} 17. Re3 {[%clk 0:01:28.6]} 17... Qf4 {[%clk
0:00:32.8]} 18. g3 {[%clk 0:01:20.3]} 18... Bxf3 {[%clk 0:00:30.4]} 19. gxf4
{[%clk 0:01:17.8]} 19... Bxd1 {[%clk 0:00:30.6]} 20. d4 {[%clk 0:00:57.8]} 20...
Bh5 {[%clk 0:00:31.1]} 21. Nc3 {[%clk 0:00:56.1]} 21... Bxf4 {[%clk 0:00:31.2]}
22. Rh3 {[%clk 0:00:54]} 22... Bxc1 {[%clk 0:00:30]} 23. Rxc1 {[%clk 0:00:54.9]}
23... Bg6 {[%clk 0:00:29.6]} 24. d5 {[%clk 0:00:50.4]} 24... cxd5 {[%clk
0:00:29.2]} 25. Nxd5 {[%clk 0:00:51.3]} 25... Rae8 {[%clk 0:00:27.5]} 26. Rc7
{[%clk 0:00:37.7]} 26... Re1+ {[%clk 0:00:24.5]} 27. Kg2 {[%clk 0:00:36.7]}
27... Be4+ {[%clk 0:00:25.1]} 28. Kg3 {[%clk 0:00:30.8]} 28... Rg1+ {[%clk
0:00:23.6]} 29. Kh4 {[%clk 0:00:25.9]} 29... Bxd5 {[%clk 0:00:21.1]} 30. Rc5
{[%clk 0:00:24.6]} 30... Rf4+ {[%clk 0:00:18.5]} 31. Kh5 {[%clk 0:00:23]} 31...
Bf7# {[%clk 0:00:19.3]} 0-1

[Event "Late-Titled-Tuesday-Blitz-January-23-2024"]
[Site "Chess.com"]
[Date "2024.01.23"]
[Round "5"]
[White "GMAkobianSTL"]
[Black "shimastream"]
[Result "0-1"]
[WhiteElo "2758"]
[BlackElo "3005"]
[TimeControl "180+1"]
[EndTime "14:54:02 PST"]
[Termination "shimastream won by resignation"]

1. d4 {[%clk 0:03:00.9]} 1... Nf6 {[%clk 0:03:00.9]} 2. c4 {[%clk 0:03:00.9]}
2... d6 {[%clk 0:02:58.9]} 3. Nf3 {[%clk 0:02:59.3]} 3... g6 {[%clk 0:02:58.5]}
4. Nc3 {[%clk 0:02:59.2]} 4... Bg7 {[%clk 0:02:58.3]} 5. Bg5 {[%clk 0:02:59.2]}
5... Nbd7 {[%clk 0:02:57.7]} 6. e3 {[%clk 0:02:58.8]} 6... c6 {[%clk 0:02:54.3]}
7. Be2 {[%clk 0:02:57.7]} 7... O-O {[%clk 0:02:53.5]} 8. Qc2 {[%clk 0:02:55.8]}
8... Qc7 {[%clk 0:02:52.2]} 9. O-O {[%clk 0:02:55]} 9... e5 {[%clk 0:02:51.9]}
10. Rfd1 {[%clk 0:02:54.5]} 10... Re8 {[%clk 0:02:51.7]} 11. Rac1 {[%clk
0:02:53.5]} 11... exd4 {[%clk 0:02:49.6]} 12. Nxd4 {[%clk 0:02:52.9]} 12... Ne5
{[%clk 0:02:48.9]} 13. b4 {[%clk 0:02:48.6]} 13... a5 {[%clk 0:02:40.9]} 14. a3
{[%clk 0:02:48.4]} 14... axb4 {[%clk 0:02:41.2]} 15. axb4 {[%clk 0:02:48.4]}
15... h6 {[%clk 0:02:28.6]} 16. Bh4 {[%clk 0:02:47.7]} 16... Nh7 {[%clk
0:02:16.6]} 17. h3 {[%clk 0:02:32.7]} 17... f5 {[%clk 0:02:08.1]} 18. Bg3 {[%clk
0:02:27.8]} 18... Nf6 {[%clk 0:02:07.3]} 19. b5 {[%clk 0:02:14.9]} 19... Kh7
{[%clk 0:02:04.2]} 20. Qb3 {[%clk 0:02:10.3]} 20... Nfd7 {[%clk 0:01:59.1]} 21.
Qc2 {[%clk 0:01:53.6]} 21... Nc5 {[%clk 0:01:56.4]} 22. Nb3 {[%clk 0:01:53.7]}
22... Na4 {[%clk 0:01:21.1]} 23. Nxa4 {[%clk 0:01:50.4]} 23... Rxa4 {[%clk
0:01:20.6]} 24. Nd4 {[%clk 0:01:33.4]} 24... Rb4 {[%clk 0:01:17.3]} 25. bxc6
{[%clk 0:01:27.6]} 25... bxc6 {[%clk 0:01:17.1]} 26. c5 {[%clk 0:01:27.9]} 26...
d5 {[%clk 0:01:16]} 27. Rb1 {[%clk 0:01:28.2]} 27... Rxb1 {[%clk 0:01:12.1]} 28.
Rxb1 {[%clk 0:01:28.9]} 28... Bd7 {[%clk 0:01:12.3]} 29. Rb6 {[%clk 0:01:26.9]}
29... Ra8 {[%clk 0:01:10.9]} 30. Qb3 {[%clk 0:01:20.9]} 30... Ra1+ {[%clk
0:01:10.1]} 31. Kh2 {[%clk 0:01:20.4]} 31... Ra7 {[%clk 0:01:11]} 32. Rb8 {[%clk
0:01:13.1]} 32... h5 {[%clk 0:01:07.4]} 33. Qb6 {[%clk 0:01:02.4]} 33... Bf6
{[%clk 0:00:55.6]} 34. Nf3 {[%clk 0:00:45.9]} 34... Nxf3+ {[%clk 0:00:48.5]} 35.
Bxf3 {[%clk 0:00:45.5]} 35... Be5 {[%clk 0:00:49]} 36. Bxe5 {[%clk 0:00:24.7]}
36... Qxe5+ {[%clk 0:00:48.4]} 37. g3 {[%clk 0:00:24.9]} 37... Ra2 {[%clk
0:00:47]} 38. Kg2 {[%clk 0:00:23.6]} 38... Qxe3 {[%clk 0:00:44.9]} 39. Rh8+
{[%clk 0:00:20.3]} 39... Kxh8 {[%clk 0:00:42.5]} 40. Qd8+ {[%clk 0:00:21]} 40...
Be8 {[%clk 0:00:41.1]} 41. Qf6+ {[%clk 0:00:19.6]} 41... Kh7 {[%clk 0:00:41.3]}
0-1

[Event "Late-Titled-Tuesday-Blitz-January-23-2024"]
[Site "Chess.com"]
[Date "2024.01.23"]
[Round "5"]
[White "Alex_Banzea"]
[Black "toninhojit"]
[Result "0-1"]
[WhiteElo "2617"]
[BlackElo "2490"]
[TimeControl "180+1"]
[EndTime "14:54:06 PST"]
[Termination "toninhojit won by resignation"]

1. d4 {[%clk 0:03:00.9]} 1... Nf6 {[%clk 0:03:00.2]} 2. Nc3 {[%clk 0:02:59.5]}
2... c5 {[%clk 0:03:00.8]} 3. d5 {[%clk 0:02:45.3]} 3... d6 {[%clk 0:02:59.6]}
4. e4 {[%clk 0:02:36.5]} 4... g6 {[%clk 0:02:55]} 5. Nf3 {[%clk 0:02:33.9]} 5...
Bg7 {[%clk 0:02:55.5]} 6. Bc4 {[%clk 0:02:29.4]} 6... O-O {[%clk 0:02:52.8]} 7.
O-O {[%clk 0:02:19.6]} 7... Na6 {[%clk 0:02:48.9]} 8. h3 {[%clk 0:02:18.7]} 8...
Nc7 {[%clk 0:02:48.7]} 9. Bf4 {[%clk 0:02:19]} 9... b5 {[%clk 0:02:39.4]} 10.
Nxb5 {[%clk 0:02:19.2]} 10... Nxe4 {[%clk 0:02:37.6]} 11. Nxc7 {[%clk
0:02:06.5]} 11... Qxc7 {[%clk 0:02:38.5]} 12. c3 {[%clk 0:02:05.1]} 12... Rb8
{[%clk 0:02:33.9]} 13. Re1 {[%clk 0:02:03.6]} 13... Nf6 {[%clk 0:02:13.6]} 14.
Re2 {[%clk 0:01:57.7]} 14... Re8 {[%clk 0:02:08.8]} 15. Qa4 {[%clk 0:01:51.3]}
15... Bd7 {[%clk 0:02:07.2]} 16. Qa3 {[%clk 0:01:49.8]} 16... Bb5 {[%clk
0:01:44.3]} 17. Bxb5 {[%clk 0:01:45.1]} 17... Rxb5 {[%clk 0:01:45.2]} 18. c4
{[%clk 0:01:27.2]} 18... Rb4 {[%clk 0:01:44.2]} 19. Nd2 {[%clk 0:01:09.3]} 19...
Nxd5 {[%clk 0:01:39]} 20. cxd5 {[%clk 0:00:58.9]} 20... Rxf4 {[%clk 0:01:39.9]}
21. Rae1 {[%clk 0:00:53.9]} 21... Rd4 {[%clk 0:01:23.4]} 22. Nf3 {[%clk
0:00:46.5]} 22... Rb4 {[%clk 0:01:09.5]} 23. b3 {[%clk 0:00:45.6]} 23... Bf6
{[%clk 0:01:07.4]} 24. Qa6 {[%clk 0:00:42.2]} 24... Qb7 {[%clk 0:01:03.4]} 25.
Qd3 {[%clk 0:00:42.1]} 25... Rc8 {[%clk 0:01:00.9]} 26. Nd2 {[%clk 0:00:40]}
26... Rd4 {[%clk 0:00:59.4]} 27. Qe3 {[%clk 0:00:37.4]} 27... Qxd5 {[%clk
0:00:55.1]} 28. Nc4 {[%clk 0:00:37.8]} 28... Rd1 {[%clk 0:00:48.4]} 29. g3
{[%clk 0:00:32.3]} 29... Rxe1+ {[%clk 0:00:48.4]} 30. Rxe1 {[%clk 0:00:33.2]}
30... Qf5 {[%clk 0:00:44]} 31. h4 {[%clk 0:00:30.3]} 31... Bd4 {[%clk
0:00:41.4]} 32. Qe2 {[%clk 0:00:29.5]} 32... d5 {[%clk 0:00:37.9]} 33. Nd2
{[%clk 0:00:29.9]} 33... Rc6 {[%clk 0:00:35.9]} 34. Nf3 {[%clk 0:00:30.2]} 34...
Re6 {[%clk 0:00:36.1]} 0-1

[Event "Late-Titled-Tuesday-Blitz-January-23-2024"]
[Site "Chess.com"]
[Date "2024.01.23"]
[Round "5"]
[White "egnfanclub"]
[Black "Nf3c5"]
[Result "1-0"]
[WhiteElo "2371"]
[BlackElo "2536"]
[TimeControl "180+1"]
[EndTime "14:54:06 PST"]
[Termination "egnfanclub won on time"]

1. e4 {[%clk 0:02:54.2]} 1... c5 {[%clk 0:02:53.4]} 2. Nc3 {[%clk 0:02:53.8]}
2... a6 {[%clk 0:02:52.4]} 3. f4 {[%clk 0:02:54.6]} 3... b5 {[%clk 0:02:51.4]}
4. g3 {[%clk 0:02:54.6]} 4... Bb7 {[%clk 0:02:51.6]} 5. Bg2 {[%clk 0:02:55]}
5... e6 {[%clk 0:02:52.2]} 6. d3 {[%clk 0:02:54.5]} 6... d5 {[%clk 0:02:52.1]}
7. Qe2 {[%clk 0:02:52.4]} 7... Nf6 {[%clk 0:02:29.9]} 8. e5 {[%clk 0:02:49.4]}
8... Ng8 {[%clk 0:02:28.4]} 9. Nf3 {[%clk 0:02:43.8]} 9... Nh6 {[%clk
0:02:20.4]} 10. d4 {[%clk 0:02:38.6]} 10... Nf5 {[%clk 0:02:12.6]} 11. Be3
{[%clk 0:02:29.9]} 11... Nc6 {[%clk 0:02:05]} 12. Rd1 {[%clk 0:02:06.7]} 12...
cxd4 {[%clk 0:01:28.6]} 13. Nxd4 {[%clk 0:02:04.4]} 13... Ncxd4 {[%clk
0:01:25.5]} 14. Bxd4 {[%clk 0:02:04.3]} 14... Nxd4 {[%clk 0:01:23.9]} 15. Rxd4
{[%clk 0:02:04.1]} 15... Bc5 {[%clk 0:01:23.8]} 16. Rd3 {[%clk 0:01:49.5]} 16...
b4 {[%clk 0:01:17.1]} 17. Ne4 {[%clk 0:01:43.7]} 17... Qa5 {[%clk 0:00:59.7]}
18. Nxc5 {[%clk 0:01:35.3]} 18... Qxc5 {[%clk 0:01:00.4]} 19. f5 {[%clk
0:01:07.5]} 19... a5 {[%clk 0:00:46.6]} 20. fxe6 {[%clk 0:01:05.1]} 20... fxe6
{[%clk 0:00:46.7]} 21. Qh5+ {[%clk 0:00:58.9]} 21... g6 {[%clk 0:00:45.6]} 22.
Qg4 {[%clk 0:00:58.1]} 22... Qb6 {[%clk 0:00:39.6]} 23. Bh3 {[%clk 0:00:54.3]}
23... Kd7 {[%clk 0:00:18.3]} 24. Rf3 {[%clk 0:00:53.8]} 24... Rae8 {[%clk
0:00:16.8]} 25. Rf7+ {[%clk 0:00:49.2]} 25... Re7 {[%clk 0:00:17.2]} 26. Rhf1
{[%clk 0:00:48.6]} 26... Re8 {[%clk 0:00:16.4]} 27. R1f6 {[%clk 0:00:48.1]}
27... Qe3+ {[%clk 0:00:14.2]} 28. Kd1 {[%clk 0:00:43.6]} 28... Qxe5 {[%clk
0:00:14.5]} 29. Rxe6 {[%clk 0:00:33.4]} 29... Qd4+ {[%clk 0:00:14.5]} 30. Qxd4
{[%clk 0:00:32.6]} 1-0

[Event "Late-Titled-Tuesday-Blitz-January-23-2024"]
[Site "Chess.com"]
[Date "2024.01.23"]
[Round "5"]
[White "DavidGavrilescu18"]
[Black "YoreDea"]
[Result "1-0"]
[WhiteElo "2818"]
[BlackElo "2570"]
[TimeControl "180+1"]
[EndTime "14:54:08 PST"]
[Termination "DavidGavrilescu18 won by resignation"]

1. e4 {[%clk 0:03:00.9]} 1... e6 {[%clk 0:02:53]} 2. d4 {[%clk 0:02:58.8]} 2...
d5 {[%clk 0:02:51.9]} 3. e5 {[%clk 0:02:59.1]} 3... c5 {[%clk 0:02:50.7]} 4. c3
{[%clk 0:02:59.4]} 4... Nc6 {[%clk 0:02:51]} 5. Nf3 {[%clk 0:02:59.2]} 5... Nge7
{[%clk 0:02:50.6]} 6. Na3 {[%clk 0:02:58.8]} 6... Qa5 {[%clk 0:02:44.7]} 7. Bd2
{[%clk 0:02:40.5]} 7... Nf5 {[%clk 0:02:40.5]} 8. Nc2 {[%clk 0:02:36.4]} 8...
Qb6 {[%clk 0:02:28.3]} 9. Bd3 {[%clk 0:02:27.1]} 9... Qxb2 {[%clk 0:02:20.3]}
10. O-O {[%clk 0:02:24.5]} 10... Qb6 {[%clk 0:02:09.4]} 11. c4 {[%clk
0:02:10.9]} 11... Nfxd4 {[%clk 0:01:59.5]} 12. cxd5 {[%clk 0:02:04.6]} 12...
exd5 {[%clk 0:01:57.8]} 13. Ncxd4 {[%clk 0:01:54.8]} 13... cxd4 {[%clk
0:01:54.5]} 14. Re1 {[%clk 0:01:42]} 14... Be7 {[%clk 0:01:47.7]} 15. Ng5 {[%clk
0:01:36.2]} 15... Bxg5 {[%clk 0:01:42.7]} 16. Bxg5 {[%clk 0:01:37.1]} 16... Be6
{[%clk 0:01:41.6]} 17. f4 {[%clk 0:01:28.3]} 17... h6 {[%clk 0:01:26.5]} 18. Bh4
{[%clk 0:01:27.6]} 18... g6 {[%clk 0:01:25.4]} 19. Bf6 {[%clk 0:01:25.7]} 19...
Rg8 {[%clk 0:01:22]} 20. Rb1 {[%clk 0:01:25.4]} 20... Qc7 {[%clk 0:01:18.5]} 21.
Qa4 {[%clk 0:01:25.1]} 21... Kd7 {[%clk 0:01:13.3]} 22. Rec1 {[%clk 0:01:21.2]}
22... Rab8 {[%clk 0:01:04.8]} 23. Qa3 {[%clk 0:00:55.4]} 23... Kc8 {[%clk
0:00:54.2]} 24. Rxc6 {[%clk 0:00:54]} 24... Qxc6 {[%clk 0:00:26.7]} 25. Rc1
{[%clk 0:00:54.1]} 25... Re8 {[%clk 0:00:12.7]} 26. Rxc6+ {[%clk 0:00:53]} 26...
bxc6 {[%clk 0:00:10.2]} 27. Ba6+ {[%clk 0:00:53.5]} 27... Kc7 {[%clk 0:00:09.2]}
28. Be7 {[%clk 0:00:45.5]} 28... Rb1+ {[%clk 0:00:07.2]} 29. Kf2 {[%clk
0:00:45.6]} 29... Kb6 {[%clk 0:00:05.4]} 30. Bc5+ {[%clk 0:00:43.6]} 30... Kc7
{[%clk 0:00:05.7]} 31. Bd6+ {[%clk 0:00:43.1]} 31... Kb6 {[%clk 0:00:05.6]} 32.
Bd3 {[%clk 0:00:42.4]} 32... Rb5 {[%clk 0:00:03.7]} 33. Bxb5 {[%clk 0:00:42.2]}
33... cxb5 {[%clk 0:00:04.2]} 34. Qc5+ {[%clk 0:00:42.1]} 34... Ka6 {[%clk
0:00:04.6]} 35. Qc6+ {[%clk 0:00:40.1]} 35... Ka5 {[%clk 0:00:05.2]} 36. Qxe8
{[%clk 0:00:38.5]} 1-0

[Event "Late-Titled-Tuesday-Blitz-January-23-2024"]
[Site "Chess.com"]
[Date "2024.01.23"]
[Round "5"]
[White "GlavkonVVS"]
[Black "Megagigahiper3345"]
[Result "1-0"]
[WhiteElo "2514"]
[BlackElo "2656"]
[TimeControl "180+1"]
[EndTime "14:54:09 PST"]
[Termination "GlavkonVVS won by resignation"]

1. c4 {[%clk 0:03:00.9]} 1... Nf6 {[%clk 0:02:00.5]} 2. Nc3 {[%clk 0:03:00.3]}
2... g6 {[%clk 0:02:00.2]} 3. Nf3 {[%clk 0:02:59.8]} 3... Bg7 {[%clk 0:01:59.1]}
4. d4 {[%clk 0:03:00.4]} 4... d5 {[%clk 0:01:58]} 5. cxd5 {[%clk 0:03:00.2]}
5... Nxd5 {[%clk 0:01:57.3]} 6. Qb3 {[%clk 0:03:00.8]} 6... Nb6 {[%clk
0:01:52.6]} 7. Bf4 {[%clk 0:03:00.3]} 7... O-O {[%clk 0:01:51.8]} 8. Rd1 {[%clk
0:03:00.2]} 8... c6 {[%clk 0:01:51.2]} 9. e4 {[%clk 0:02:53.6]} 9... a5 {[%clk
0:01:51.1]} 10. a4 {[%clk 0:02:52.8]} 10... Na6 {[%clk 0:01:49.6]} 11. Be3
{[%clk 0:02:41.4]} 11... Bg4 {[%clk 0:01:48.9]} 12. d5 {[%clk 0:02:40.9]} 12...
c5 {[%clk 0:01:33]} 13. Bxa6 {[%clk 0:02:35.7]} 13... bxa6 {[%clk 0:01:30.7]}
14. Bxc5 {[%clk 0:02:33.9]} 14... Nd7 {[%clk 0:01:30.2]} 15. Ba3 {[%clk
0:02:26]} 15... Rb8 {[%clk 0:01:30.4]} 16. Qc2 {[%clk 0:02:19.6]} 16... Ne5
{[%clk 0:01:21.7]} 17. Qe2 {[%clk 0:02:01.3]} 17... Qc7 {[%clk 0:01:09.6]} 18.
d6 {[%clk 0:01:54.2]} 18... Qb7 {[%clk 0:00:21.6]} 19. dxe7 {[%clk 0:01:52.2]}
19... Rfe8 {[%clk 0:00:22.2]} 20. h3 {[%clk 0:01:47]} 20... Nxf3+ {[%clk
0:00:22.2]} 21. gxf3 {[%clk 0:01:46.7]} 21... Be6 {[%clk 0:00:22.8]} 22. Kf1
{[%clk 0:01:36.3]} 22... Rbc8 {[%clk 0:00:22.6]} 23. Kg2 {[%clk 0:01:35.7]}
23... Bf6 {[%clk 0:00:21.8]} 24. Nd5 {[%clk 0:01:30.8]} 24... Bxd5 {[%clk
0:00:21.6]} 25. Rxd5 {[%clk 0:01:30.6]} 25... Bxe7 {[%clk 0:00:21.8]} 26. Bxe7
{[%clk 0:01:29.3]} 26... Rxe7 {[%clk 0:00:22.7]} 27. Rxa5 {[%clk 0:01:18.6]}
27... Rc6 {[%clk 0:00:21.6]} 28. Rd1 {[%clk 0:01:16.4]} 28... Kg7 {[%clk
0:00:21.1]} 29. Rad5 {[%clk 0:01:15.3]} 29... Rb6 {[%clk 0:00:17.5]} 30. R1d2
{[%clk 0:01:13.7]} 30... Rb4 {[%clk 0:00:11.5]} 31. a5 {[%clk 0:01:10.3]} 31...
h5 {[%clk 0:00:07.8]} 32. Qe3 {[%clk 0:01:09.7]} 32... Rc7 {[%clk 0:00:06.4]}
33. Rc5 {[%clk 0:01:03.9]} 33... Rxc5 {[%clk 0:00:06.1]} 34. Qxc5 {[%clk
0:01:03.8]} 34... Rb5 {[%clk 0:00:07]} 35. Qc3+ {[%clk 0:01:01.8]} 35... Kh7
{[%clk 0:00:07.4]} 36. Rd8 {[%clk 0:00:59.9]} 36... Rg5+ {[%clk 0:00:02.9]} 37.
Kh2 {[%clk 0:00:45.7]} 37... Qd7 {[%clk 0:00:01.7]} 38. Rxd7 {[%clk 0:00:44.9]}
1-0

[Event "Late-Titled-Tuesday-Blitz-January-23-2024"]
[Site "Chess.com"]
[Date "2024.01.23"]
[Round "5"]
[White "esrosenberg"]
[Black "Chessdreamer2020"]
[Result "0-1"]
[WhiteElo "2365"]
[BlackElo "2555"]
[TimeControl "180+1"]
[EndTime "14:54:10 PST"]
[Termination "Chessdreamer2020 won by resignation"]

1. c4 {[%clk 0:02:53.1]} 1... d6 {[%clk 0:02:59.6]} 2. g3 {[%clk 0:02:50.7]}
2... e5 {[%clk 0:02:59.2]} 3. Bg2 {[%clk 0:02:49.8]} 3... Nc6 {[%clk 0:02:59.4]}
4. Nc3 {[%clk 0:02:44.8]} 4... Be6 {[%clk 0:02:55]} 5. d3 {[%clk 0:02:44.1]}
5... Qd7 {[%clk 0:02:55]} 6. a3 {[%clk 0:02:31.4]} 6... a5 {[%clk 0:02:54.5]} 7.
Rb1 {[%clk 0:02:31.4]} 7... Nf6 {[%clk 0:02:50.9]} 8. b4 {[%clk 0:02:31.2]} 8...
axb4 {[%clk 0:02:49.8]} 9. axb4 {[%clk 0:02:31.6]} 9... Be7 {[%clk 0:02:49.8]}
10. b5 {[%clk 0:02:32]} 10... Nd8 {[%clk 0:02:49.4]} 11. h3 {[%clk 0:02:29.2]}
11... O-O {[%clk 0:02:49.3]} 12. Nf3 {[%clk 0:02:28.4]} 12... h6 {[%clk
0:02:48.1]} 13. Be3 {[%clk 0:02:24]} 13... c6 {[%clk 0:02:31.5]} 14. Qd2 {[%clk
0:02:18.2]} 14... Re8 {[%clk 0:02:27.7]} 15. Bxh6 {[%clk 0:02:15.8]} 15... gxh6
{[%clk 0:02:26.8]} 16. Qxh6 {[%clk 0:02:16.7]} 16... Nh7 {[%clk 0:02:26.5]} 17.
Ne4 {[%clk 0:02:03.9]} 17... Bf8 {[%clk 0:02:14.7]} 18. Qh5 {[%clk 0:01:52.8]}
18... f6 {[%clk 0:01:43.1]} 19. bxc6 {[%clk 0:01:44.9]} 19... bxc6 {[%clk
0:01:42.5]} 20. O-O {[%clk 0:01:41.4]} 20... Qf7 {[%clk 0:01:40.9]} 21. Qh4
{[%clk 0:01:36.7]} 21... Be7 {[%clk 0:01:31.4]} 22. Qh6 {[%clk 0:01:29.6]} 22...
d5 {[%clk 0:01:24.6]} 23. cxd5 {[%clk 0:01:26.9]} 23... cxd5 {[%clk 0:01:25.5]}
24. Nc3 {[%clk 0:01:26.9]} 24... Rc8 {[%clk 0:01:22.3]} 25. Rfc1 {[%clk
0:01:23.8]} 25... Nc6 {[%clk 0:01:13.4]} 26. Nh4 {[%clk 0:01:22.3]} 26... Bf8
{[%clk 0:01:07.6]} 27. Qg6+ {[%clk 0:00:36.8]} 27... Qxg6 {[%clk 0:01:07]} 28.
Nxg6 {[%clk 0:00:37.7]} 28... Bh6 {[%clk 0:01:07.8]} 29. e3 {[%clk 0:00:34.7]}
29... Kf7 {[%clk 0:00:53.2]} 30. Nh4 {[%clk 0:00:31.5]} 30... Ne7 {[%clk
0:00:46.2]} 31. Rb7 {[%clk 0:00:29.3]} 31... d4 {[%clk 0:00:37.6]} 32. Ne2
{[%clk 0:00:21.1]} 32... Rxc1+ {[%clk 0:00:37.7]} 33. Nxc1 {[%clk 0:00:21.2]}
33... dxe3 {[%clk 0:00:38.6]} 34. Nb3 {[%clk 0:00:15.5]} 34... e2 {[%clk
0:00:38.2]} 35. Nf3 {[%clk 0:00:14.8]} 35... Bd5 {[%clk 0:00:38.1]} 36. Rb5
{[%clk 0:00:13.1]} 36... Bxf3 {[%clk 0:00:38]} 0-1

[Event "Late-Titled-Tuesday-Blitz-January-23-2024"]
[Site "Chess.com"]
[Date "2024.01.23"]
[Round "5"]
[White "Ali_rastbod"]
[Black "Igor_Lysyj"]
[Result "0-1"]
[WhiteElo "2694"]
[BlackElo "2887"]
[TimeControl "180+1"]
[EndTime "14:54:13 PST"]
[Termination "Igor_Lysyj won by resignation"]

1. d4 {[%clk 0:03:00.9]} 1... d5 {[%clk 0:02:59.4]} 2. c4 {[%clk 0:02:59.9]}
2... e6 {[%clk 0:02:59.3]} 3. Nc3 {[%clk 0:03:00]} 3... c5 {[%clk 0:02:59.2]} 4.
cxd5 {[%clk 0:02:59.9]} 4... exd5 {[%clk 0:02:59.3]} 5. Nf3 {[%clk 0:03:00.1]}
5... Nc6 {[%clk 0:02:58.8]} 6. dxc5 {[%clk 0:02:59.2]} 6... d4 {[%clk
0:02:58.9]} 7. Ne4 {[%clk 0:02:56.2]} 7... Bxc5 {[%clk 0:02:56.7]} 8. Nxc5
{[%clk 0:02:57.1]} 8... Qa5+ {[%clk 0:02:56.2]} 9. Qd2 {[%clk 0:02:54.9]} 9...
Qxc5 {[%clk 0:02:55.6]} 10. a3 {[%clk 0:02:55.1]} 10... Nge7 {[%clk 0:02:36.3]}
11. b4 {[%clk 0:02:49.9]} 11... Qb6 {[%clk 0:02:36.4]} 12. b5 {[%clk 0:02:35.3]}
12... Qxb5 {[%clk 0:02:32.6]} 13. Nxd4 {[%clk 0:02:35.8]} 13... Nxd4 {[%clk
0:02:24.7]} 14. Qxd4 {[%clk 0:02:36.7]} 14... O-O {[%clk 0:02:23.8]} 15. e4
{[%clk 0:02:21.8]} 15... Qh5 {[%clk 0:02:13.5]} 16. Bb2 {[%clk 0:02:17.4]} 16...
Qg6 {[%clk 0:02:11.3]} 17. Bd3 {[%clk 0:02:06.3]} 17... Nc6 {[%clk 0:02:08.4]}
18. Qe3 {[%clk 0:01:59.5]} 18... Qxg2 {[%clk 0:01:57.2]} 19. O-O-O {[%clk
0:01:55.3]} 19... Qh3 {[%clk 0:01:57.2]} 20. f3 {[%clk 0:01:36.1]} 20... f6
{[%clk 0:01:46.8]} 21. Rhg1 {[%clk 0:01:33.5]} 21... Qe6 {[%clk 0:01:20]} 22.
Kb1 {[%clk 0:01:22.6]} 22... Ne5 {[%clk 0:00:47.3]} 23. Be2 {[%clk 0:01:13]}
23... Qb6 {[%clk 0:00:39.2]} 24. Qh6 {[%clk 0:01:03.7]} 24... Ng6 {[%clk
0:00:38.7]} 25. Rxg6 {[%clk 0:00:31.4]} 25... hxg6 {[%clk 0:00:38.3]} 26. Qxg6
{[%clk 0:00:32.3]} 26... Be6 {[%clk 0:00:38.3]} 27. Rg1 {[%clk 0:00:31.1]} 27...
Rf7 {[%clk 0:00:38.4]} 28. Bd1 {[%clk 0:00:26]} 28... Rd8 {[%clk 0:00:34.7]} 29.
Bc2 {[%clk 0:00:26.2]} 29... Rd2 {[%clk 0:00:31.3]} 30. Qg3 {[%clk 0:00:17.9]}
30... Bb3 {[%clk 0:00:26.1]} 31. Bxb3 {[%clk 0:00:13.9]} 31... Qxb3 {[%clk
0:00:25.4]} 0-1